bitfinex-derivatives/quotes_ETHF0:USTF0_20240922
["timestamp","ask_amount","ask_price","bid_price","bid_amount"]
[1727043505007,3.2078,2539.5,2539.1,0.39381]
[1727043505522,1.2205,2539.8,2539.2,3.60159]
[1727043505712,1.2205,2539.8,2539.2,3.2078]
[1727043506421,3.2078,2539.7,2539.3,5.529]
[1727043507712,3.2078,2539.7,2539.3,0.39378]
[1727043507913,3.2078,2539.7,2539.3,0.39377]
[1727043508221,3.2078,2539.7,2539.4,0.39376]
[1727043508424,1.2205,2539.8,2539.2,5.8578]
[1727043508623,1.1555,2539.9,2539.8,0.39371]
[1727043508823,6.8227,2540.3,2539.6,2.65]
[1727043509118,3.6149,2540.3,2539.6,2.65]
[1727043509325,3.6149,2540.3,2539.6,3.04373]
[1727043509326,6.8227,2540.3,2539.6,3.04373]
[1727043509521,6.8227,2540.3,2539.6,0.39373]
[1727043509713,6.8227,2540.3,2539.5,3.2078]
[1727043509912,6.8227,2540.3,2539.6,5.529]
[1727043510118,3.2078,2540.0,2539.5,3.2078]
[1727043510514,3.2078,2540.0,2539.4,5.92176]
[1727043510719,3.2078,2540.0,2539.5,0.39375]
[1727043510924,6.8227,2540.3,2539.7,0.39372]
[1727043511318,6.8227,2540.3,2539.6,0.39372]
[1727043511517,6.8227,2540.3,2539.4,8.7358]
[1727043511819,6.8227,2540.3,2539.6,0.39373]
[1727043512424,0.39365,2540.2,2539.4,8.7358]
[1727043512620,0.39365,2540.2,2539.5,0.39375]
[1727043513415,6.8227,2540.3,2539.6,0.39374]
[1727043513921,6.8227,2540.3,2539.4,8.7358]
[1727043514114,7.21633,2540.3,2539.6,0.39373]
[1727043514318,0.39366,2540.2,2539.5,0.39375]
[1727043514510,6.8227,2540.3,2539.4,8.7358]
[1727043514511,6.8227,2540.3,2539.6,0.39374]
[1727043514718,0.39365,2540.2,2539.6,0.39374]
[1727043515130,6.8227,2540.3,2539.4,8.7358]
[1727043515621,3.2078,2540.3,2539.7,3.2078]
[1727043515812,2.3546,2540.2,2539.7,3.2078]
[1727043516018,3.2078,2540.3,2540.1,0.39366]
[1727043516618,1.1557,2540.5,2539.8,1.1616]
[1727043516619,1.1801,2540.4,2539.8,1.1616]
[1727043516818,1.1801,2540.4,2540.1,0.39366]
[1727043517330,1.1801,2540.4,2539.8,2.3291]
[1727043517331,1.1801,2540.4,2540.2,0.39364]
[1727043517821,1.1801,2540.4,2540.0,3.2078]
[1727043518023,1.1801,2540.4,2540.0,8.7348]
[1727043518220,1.1801,2540.4,2540.0,9.12847]
[1727043518422,1.1801,2540.4,2540.0,8.7348]
[1727043518925,1.1801,2540.4,2540.0,9.12848]
[1727043519129,1.1801,2540.4,2540.0,8.7348]
[1727043519527,4.3635,2540.5,2540.3,0.39363]
[1727043519528,1.1557,2540.5,2540.3,0.39363]
[1727043519724,1.1557,2540.5,2540.3,0.39362]
[1727043520123,1.1557,2540.5,2540.2,0.39363]
[1727043520328,4.3666,2540.8,2540.5,0.39359]
[1727043520532,4.3666,2540.8,2540.3,4.74402]
[1727043520724,4.3666,2540.8,2540.3,4.3504]
[1727043520926,4.3666,2540.8,2540.4,0.39361]
[1727043521430,4.3666,2540.8,2540.6,0.39358]
[1727043522630,4.3666,2540.8,2540.4,1.1674]
[1727043522631,3.2078,2540.8,2540.4,1.1674]
[1727043522831,3.2078,2540.8,2540.5,0.39359]
[1727043523729,3.2078,2540.8,2540.4,1.1674]
[1727043523929,3.2078,2540.8,2540.5,0.39359]
[1727043524827,3.2078,2540.8,2540.4,1.561]
[1727043525024,3.2078,2540.8,2540.4,1.1674]
[1727043525328,5.5454,2541.2,2540.6,0.39358]
[1727043525527,5.5454,2541.2,2540.6,3.60138]
[1727043525726,5.5454,2541.2,2540.6,3.2078]
[1727043526831,5.93889,2541.2,2540.5,0.39359]
[1727043527226,5.93889,2541.2,2540.6,0.39358]
[1727043527227,5.5454,2541.2,2540.6,0.39358]
[1727043527426,5.5454,2541.2,2540.7,0.39357]
[1727043527627,5.5454,2541.2,2540.6,3.2078]
[1727043527829,5.5454,2541.2,2540.6,3.60138]
[1727043528033,5.9389,2541.2,2540.4,1.1674]
[1727043528335,5.9389,2541.2,2540.6,0.39358]
[1727043528534,5.93889,2541.2,2540.6,0.39358]
[1727043528727,5.5454,2541.2,2540.6,0.39358]
[1727043529434,5.5454,2541.2,2540.7,0.39356]
[1727043529734,5.5454,2541.2,2540.6,3.2078]
[1727043530231,0.39356,2540.8,2540.3,9.02443]
[1727043530432,1.2445,2540.7,2540.3,5.423]
[1727043530623,1.2445,2540.7,2540.4,0.39361]
[1727043531537,1.2445,2540.7,2540.6,2.15]
[1727043531737,4.7396,2541.2,2540.6,2.54358]
[1727043532038,1.2445,2541.1,2540.6,2.54358]
[1727043532234,1.2445,2541.1,2540.7,0.39357]
[1727043532928,1.2445,2541.1,2540.6,2.54357]
[1727043534441,1.2445,2541.1,2540.6,0.39357]
[1727043535039,1.2445,2541.1,2540.5,4.77379]
[1727043535539,1.2445,2541.1,2540.5,4.3802]
[1727043535733,4.3461,2541.2,2540.5,4.3802]
[1727043535734,3.2078,2541.2,2540.5,4.3802]
[1727043536037,2.4052,2541.3,2540.9,0.39353]
[1727043536237,1.2551,2541.7,2541.1,3.6013]
[1727043536437,3.60121,2541.8,2541.0,6.4472]
[1727043536649,3.2078,2541.8,2541.1,1.1334]
[1727043536838,3.2078,2541.8,2540.9,3.2078]
[1727043536839,3.2078,2541.4,2540.9,3.2078]
[1727043537136,2.4052,2541.3,2540.9,3.2078]
[1727043537439,2.4052,2541.3,2541.0,0.39352]
[1727043537938,2.4052,2541.3,2540.9,3.60133]
[1727043538440,2.4052,2541.3,2540.9,0.39353]
[1727043538838,2.4052,2541.3,2541.0,3.2078]
[1727043539544,4.32871,2541.2,2540.6,5.205]
[1727043539743,3.2078,2541.1,2540.6,5.205]
[1727043539935,3.60132,2541.1,2540.4,0.3936]
[1727043540134,3.60132,2541.1,2540.5,3.2078]
[1727043540539,3.2078,2541.1,2540.5,3.2078]
[1727043540844,1.1382,2541.2,2540.0,3.2078]
[1727043540845,3.2078,2540.9,2540.0,3.2078]
[1727043541047,0.39364,2540.3,2540.0,3.2078]
[1727043541344,2.4594,2540.2,2540.0,0.39367]
[1727043541638,3.2078,2540.5,2540.0,3.2078]
[1727043542044,2.4522,2540.8,2540.3,3.2078]
[1727043542338,2.4522,2540.8,2540.5,0.3936]
[1727043542542,2.4522,2540.8,2540.4,5.205]
[1727043542543,2.4522,2540.8,2540.7,0.39357]
[1727043542839,3.2078,2541.0,2540.4,5.205]
[1727043542840,3.2078,2541.0,2540.6,3.2078]
[1727043543342,3.2078,2541.0,2540.5,4.21618]
[1727043543343,3.2078,2541.4,2540.9,3.60133]
[1727043543640,3.2078,2541.4,2540.9,4.78603]
[1727043545738,3.2078,2541.4,2541.0,0.39352]
[1727043545937,1.1974,2541.5,2541.2,3.2078]
[1727043546144,3.2078,2541.9,2541.2,3.2078]
[1727043546346,1.2012,2541.8,2541.6,0.39342]
[1727043546641,3.2078,2541.9,2541.4,2.65]
[1727043546847,3.2078,2541.9,2541.4,3.04345]
[1727043547150,3.2078,2541.9,2541.2,8.4128]
[1727043547441,5.6035,2542.2,2541.2,8.80628]
[1727043547651,5.6035,2542.2,2541.5,3.2078]
[1727043547841,0.39337,2542.0,2541.2,8.80628]
[1727043548043,3.2078,2541.9,2541.2,8.80628]
[1727043548242,3.2078,2541.9,2541.3,0.39347]
[1727043548540,5.6035,2542.2,2541.3,3.2078]
[1727043548750,3.2078,2541.8,2541.3,3.2078]
[1727043548949,0.39338,2542.0,2541.2,5.59848]
[1727043548950,1.2045,2541.7,2541.2,5.59848]
[1727043549142,1.2045,2541.7,2541.3,5.205]
[1727043549143,1.2012,2541.6,2541.3,5.205]
[1727043549444,3.2078,2542.0,2541.4,2.65]
[1727043549647,3.2078,2542.0,2541.6,3.60122]
[1727043549844,3.2078,2542.0,2541.4,2.65]
[1727043550147,3.2078,2542.0,2541.5,4.4001]
[1727043550340,3.2078,2542.0,2541.6,0.39342]
[1727043550535,3.2078,2542.0,2541.5,1.58573]
[1727043550942,3.2078,2542.7,2541.7,5.8578]
[1727043551247,2.3778,2542.7,2542.2,2.65]
[1727043551549,2.3778,2542.7,2542.3,8.80611]
[1727043551848,2.3778,2542.7,2542.3,8.4128]
[1727043552450,2.3778,2542.7,2542.4,0.3933]
[1727043553051,2.3778,2542.7,2542.3,8.4128]
[1727043553350,5.5567,2543.3,2542.4,2.478]
[1727043553549,0.39319,2543.2,2542.5,3.2078]
[1727043553758,5.5567,2543.3,2542.5,3.2078]
[1727043553943,5.5567,2543.3,2542.7,0.39325]
[1727043554252,5.5567,2543.3,2542.5,5.8578]
[1727043554654,5.5567,2543.3,2542.6,0.39327]
[1727043555155,5.5567,2543.3,2542.7,0.39326]
[1727043555748,5.94987,2543.3,2542.7,0.39326]
[1727043555960,0.39319,2543.2,2542.5,3.60108]
[1727043556159,3.2078,2543.0,2542.6,5.203]
[1727043556349,5.94988,2543.3,2542.6,5.59627]
[1727043556548,5.94987,2543.3,2542.6,5.203]
[1727043556742,5.5567,2543.3,2542.6,5.203]
[1727043557253,5.5567,2543.3,2542.8,0.39324]
[1727043557555,2.3489,2543.3,2542.8,5.8578]
[1727043557759,2.3489,2543.3,2543.0,0.3932]
[1727043558246,2.3489,2543.3,2543.0,0.39321]
[1727043558450,3.2078,2543.7,2543.1,0.39319]
[1727043558451,3.60091,2543.7,2543.1,0.39319]
[1727043558657,3.60091,2543.7,2542.8,5.8578]
[1727043558658,2.3449,2543.6,2542.9,1.2436]
[1727043558958,2.73802,2543.6,2543.0,0.39321]
[1727043559250,2.73802,2543.6,2542.9,1.2436]
[1727043559251,2.3449,2543.6,2543.2,0.39318]
[1727043559457,2.3449,2543.6,2542.9,1.2436]
[1727043559644,3.2078,2543.4,2542.9,0.39322]
[1727043559847,3.2078,2543.0,2542.4,1.2284]
[1727043560047,0.98292,2543.3,2542.5,0.39328]
[1727043560048,2.4079,2542.9,2542.5,0.39328]
[1727043560351,2.4079,2542.9,2542.5,0.39329]
[1727043560752,2.4079,2542.9,2542.5,0.39328]
[1727043561149,2.4079,2542.9,2542.4,6.3994]
[1727043561351,2.4079,2542.9,2542.5,0.39328]
[1727043562046,2.4079,2542.9,2542.4,6.3994]
[1727043562247,0.39329,2542.5,2541.9,0.39338]
[1727043562552,0.39327,2542.7,2542.0,0.39336]
[1727043562752,3.60105,2542.8,2542.1,0.39334]
[1727043562955,0.39327,2542.7,2542.0,0.39337]
[1727043563153,3.2078,2542.8,2542.0,0.39337]
[1727043563154,0.39328,2542.6,2542.2,3.2078]
[1727043563352,0.39329,2542.5,2542.1,5.171]
[1727043563657,1.2103,2542.4,2542.0,0.39336]
[1727043563856,1.2288,2542.3,2541.9,0.39337]
[1727043564356,1.2288,2542.3,2542.0,0.39336]
[1727043564850,1.2288,2542.3,2542.0,3.60116]
[1727043565058,1.2288,2542.3,2542.0,3.2078]
[1727043565951,1.2288,2542.3,2541.7,3.2078]
[1727043566152,1.2288,2542.3,2541.9,5.171]
[1727043566559,1.2288,2542.3,2541.9,7.821]
[1727043566861,1.2288,2542.3,2542.0,0.39335]
[1727043567159,1.2288,2542.3,2542.0,1.56975]
[1727043567759,1.2288,2542.3,2542.0,1.56977]
[1727043567962,1.2288,2542.3,2542.0,1.1764]
[1727043568556,1.2288,2542.3,2542.0,1.56976]
[1727043568754,1.2288,2542.3,2542.0,1.1764]
[1727043568961,1.2288,2542.3,2542.0,1.56977]
[1727043571353,1.2288,2542.3,2542.1,0.39334]
[1727043571862,1.2288,2542.3,2542.0,1.56976]
[1727043572063,3.2078,2543.3,2542.2,5.8578]
[1727043572255,4.13430324,2543.8,2542.3,1.2496]
[1727043572256,3.2078,2543.0,2542.3,1.2496]
[1727043572557,3.2078,2542.7,2542.3,5.171]
[1727043572753,1.2,2542.6,2542.3,5.171]
[1727043573563,3.9336,2542.5,2542.1,3.2078]
[1727043573862,3.2078,2542.4,2541.8,8.77119]
[1727043574255,3.6011,2542.4,2541.8,10.92119]
[1727043574665,2.3719,2542.5,2542.1,2.15]
[1727043574866,1.2393,2542.5,2542.3,2.15]
[1727043575156,3.2078,2542.8,2542.3,2.15]
[1727043575363,3.2078,2542.8,2542.6,0.39327]
[1727043575556,3.2078,2542.8,2542.6,5.56327]
[1727043575763,3.2078,2542.8,2542.6,5.17]
[1727043577268,3.2078,2542.8,2542.7,0.39326]
[1727043577764,3.2078,2544.2,2542.8,0.98311]
[1727043578060,1.1888,2543.8,2543.3,3.2078]
[1727043578260,1.1888,2543.8,2543.4,5.17]
[1727043578261,1.58189,2543.8,2543.4,5.17]
[1727043578458,0.3931,2543.7,2543.4,5.17]
[1727043578763,1.5819,2543.8,2543.4,5.17]
[1727043578968,1.1397,2543.6,2543.4,5.17]
[1727043579269,1.1397,2543.6,2543.4,5.56315]
[1727043579458,1.1397,2543.6,2543.4,5.17]
[1727043583365,1.53282,2543.6,2543.4,5.17]
[1727043583669,0.39316,2543.4,2542.9,0.39321]
[1727043583860,0.39316,2543.4,2542.9,5.82321]
[1727043584057,1.1456,2543.4,2542.9,5.82321]
[1727043584255,1.1397,2543.6,2543.2,0.39317]
[1727043584459,1.1397,2543.6,2543.3,0.39317]
[1727043584958,1.1397,2543.6,2543.4,0.39314]
[1727043585160,1.1397,2543.6,2543.4,3.2078]
[1727043585366,1.1397,2543.6,2543.5,0.39313]
[1727043585865,1.1397,2543.6,2543.4,3.60094]
[1727043586260,1.1397,2543.6,2543.5,0.39313]
[1727043587263,1.1888,2543.8,2543.7,0.3931]
[1727043587470,1.1888,2543.8,2543.7,9.0299]
[1727043587969,0.98245,2544.6,2543.7,9.0299]
[1727043587970,3.2078,2544.7,2543.7,18.568]
[1727043588166,1.1983,2544.6,2543.8,3.2078]
[1727043588464,1.1983,2544.6,2543.7,8.069]
[1727043588465,0.39299,2544.5,2544.2,3.2078]
[1727043588657,1.59127,2544.6,2544.0,0.39305]
[1727043588857,1.1983,2544.6,2543.7,5.8478]
[1727043589062,3.2078,2544.4,2543.7,3.2078]
[1727043589270,0.39305,2544.1,2543.6,3.60092]
[1727043589462,1.2031,2544.0,2543.6,3.2078]
[1727043589767,1.59616,2544.0,2543.6,3.2078]
[1727043591061,0.39308,2543.9,2543.6,3.2078]
[1727043591266,0.39309,2543.8,2543.6,3.2078]
[1727043591468,1.144,2543.8,2543.6,3.2078]
[1727043591865,1.144,2543.8,2543.7,3.6009]
[1727043592169,1.144,2543.8,2543.7,3.2078]
[1727043592666,1.5371,2543.8,2543.5,3.2078]
[1727043592871,1.5371,2543.8,2543.3,5.82215]
[1727043593170,1.5371,2543.8,2543.4,0.39315]
[1727043593369,1.144,2543.8,2543.2,3.2078]
[1727043593667,0.39314,2543.5,2543.2,3.2078]
[1727043593856,1.1877,2543.4,2543.0,5.8222]
[1727043594064,1.1877,2543.4,2543.2,3.2078]
[1727043594264,1.2066,2543.3,2543.1,0.39319]
[1727043595562,1.2066,2543.3,2543.0,8.6368]
[1727043595767,1.2066,2543.3,2543.0,3.2078]
[1727043595967,0.98304,2543.0,2542.4,0.40488082]
[1727043596264,0.39329,2542.5,2542.4,0.40488082]
[1727043596770,6.73189,2542.5,2542.4,0.40488082]
[1727043597167,6.3386,2542.5,2542.4,0.40488082]
[1727043597671,2.405,2542.5,2542.4,0.40488082]
[1727043598171,6.3386,2542.5,2542.4,0.40488082]
[1727043598375,6.73189,2542.5,2542.4,0.40488082]
[1727043598564,6.73189,2542.5,2541.9,3.2078]
[1727043598565,0.39334,2542.2,2541.9,3.2078]
[1727043598764,5.6128,2542.5,2542.0,0.39336]
[1727043598970,5.6128,2542.5,2541.9,3.2078]
[1727043599272,2.79829,2542.5,2542.2,3.2078]
[1727043599477,2.79829,2542.5,2542.1,0.39334]
[1727043599780,2.405,2542.5,2542.1,0.39334]
[1727043599968,2.405,2542.5,2541.9,3.2078]
[1727043600164,2.79829,2542.5,2542.1,0.39335]
[1727043600363,2.79829,2542.5,2541.9,3.2078]
[1727043600364,2.405,2542.5,2542.2,0.39333]
[1727043600577,2.405,2542.5,2542.2,3.2078]
[1727043600868,2.405,2542.5,2542.2,3.60114]
[1727043601074,2.405,2542.5,2542.2,3.2078]
[1727043601378,2.79829,2542.5,2542.2,3.2078]
[1727043601573,2.405,2542.5,2542.2,3.2078]
[1727043601877,1.53694,2542.9,2542.4,0.3933]
[1727043602072,5.18027549,2543.3,2542.2,3.2078]
[1727043602073,1.2171,2543.0,2542.7,0.39325]
[1727043602380,1.2171,2543.0,2542.5,3.2078]
[1727043602672,1.2171,2543.0,2542.8,0.39323]
[1727043602868,1.2171,2543.0,2542.8,3.2078]
[1727043603074,1.2171,2543.0,2542.8,3.60104]
[1727043603270,0.3932,2543.1,2542.8,3.2078]
[1727043603576,1.6103,2543.1,2542.5,3.2078]
[1727043603777,1.2171,2543.1,2542.5,3.2078]
[1727043603967,1.2171,2543.1,2542.9,3.2078]
[1727043604568,3.60093,2543.6,2543.0,3.2078]
[1727043604771,3.60093,2543.6,2542.7,3.2078]
[1727043604772,0.39313,2543.5,2542.7,3.2078]
[1727043605070,0.3932,2543.1,2542.7,3.2078]
[1727043605270,1.60431,2543.0,2542.7,3.2078]
[1727043605472,0.39323,2542.9,2542.4,3.2078]
[1727043605672,2.3437,2543.0,2542.5,0.39328]
[1727043605967,2.3437,2543.0,2542.4,3.2078]
[1727043606172,2.3437,2543.0,2542.6,0.39327]
[1727043606373,1.2111,2543.0,2542.7,0.39325]
[1727043606766,1.52574,2543.5,2542.7,3.2078]
[1727043606985,1.2111,2543.4,2542.8,1.62263]
[1727043607878,1.2111,2543.4,2542.8,1.2294]
[1727043608482,1.2111,2543.4,2542.8,1.62264]
[1727043609081,1.60425,2543.4,2542.8,1.62264]
[1727043609281,0.39317,2543.3,2542.8,1.2294]
[1727043609473,3.2078,2543.3,2542.4,8.5988]
[1727043609674,0.39319,2543.2,2542.6,0.39327]
[1727043609983,0.39319,2543.2,2542.7,3.2078]
[1727043610478,1.2111,2543.4,2542.4,4.3701]
[1727043610479,3.2078,2543.3,2542.4,4.3701]
[1727043610681,3.2078,2542.9,2542.4,3.2078]
[1727043610880,0.39326,2542.7,2542.4,3.2078]
[1727043611080,0.39326,2542.7,2541.9,1.1623]
[1727043611081,4.02585,2542.8,2542.3,0.39331]
[1727043611577,3.6326,2542.8,2542.1,3.2078]
[1727043611782,0.3933,2542.5,2542.0,0.39336]
[1727043612078,0.3933,2542.5,2542.1,3.2078]
[1727043612487,3.6326,2542.8,2542.2,0.39332]
[1727043612686,0.39327,2542.7,2542.2,0.39332]
[1727043612989,0.39327,2542.6,2542.2,0.39332]
[1727043613574,3.2078,2542.4,2541.7,8.5988]
[1727043613779,3.2078,2542.4,2542.0,3.2078]
[1727043613780,0.39331,2542.4,2542.0,3.2078]
[1727043614084,0.3933,2542.5,2542.0,3.60116]
[1727043614783,0.39331,2542.4,2542.0,3.60116]
[1727043614979,7.82355,2542.8,2542.0,3.2078]
[1727043615186,1.1663,2542.3,2541.7,3.6012]
[1727043615384,1.1663,2542.3,2541.7,3.2078]
[1727043615587,0.3934,2541.8,2541.7,3.2078]
[1727043615792,3.6012,2541.8,2541.1,3.2078]
[1727043616093,2.3974,2541.7,2541.1,3.2078]
[1727043616285,2.3974,2541.7,2541.3,0.39347]
[1727043616589,2.3974,2541.7,2541.1,3.2078]
[1727043616783,1.2311,2541.7,2541.4,3.2078]
[1727043616980,4.3741,2542.1,2541.4,3.2078]
[1727043617184,5.5102,2542.1,2541.5,2.14061]
[1727043617378,5.5102,2542.1,2541.9,0.39338]
[1727043617683,5.5102,2542.1,2541.8,0.39339]
[1727043617684,2.3024,2542.1,2541.8,0.39339]
[1727043618486,2.3024,2542.1,2541.8,0.3934]
[1727043619295,4.74809,2542.6,2542.0,0.39337]
[1727043619485,1.1173,2542.5,2541.7,3.2078]
[1727043619680,1.1173,2542.5,2541.6,3.7827]
[1727043619681,1.1173,2542.5,2542.1,0.39334]
[1727043619887,1.1173,2542.5,2542.0,3.2078]
[1727043620190,1.1173,2542.5,2542.0,4.76716]
[1727043620382,3.2078,2542.6,2542.0,4.3738]
[1727043620693,0.39328,2542.6,2542.1,0.39334]
[1727043621096,0.39326,2542.7,2542.2,0.39333]
[1727043622396,0.3933,2542.5,2542.0,4.76716]
[1727043622696,1.1591,2542.8,2542.0,4.3738]
[1727043622885,0.98326,2542.5,2541.7,3.2078]
[1727043623085,0.39336,2542.1,2541.7,3.60121]
[1727043623398,2.71487,2542.0,2541.7,3.60121]
[1727043623692,2.3215,2542.0,2541.7,3.60121]
[1727043623898,2.3215,2542.0,2541.7,3.2078]
[1727043624095,4.1913,2541.8,2541.2,3.2078]
[1727043624290,8.3215,2542.0,2541.2,3.2078]
[1727043624291,0.39342,2541.7,2541.2,3.2078]
[1727043624686,0.39341,2541.7,2541.4,0.39345]
[1727043624892,0.39341,2541.8,2541.4,0.39345]
[1727043625087,2.3215,2542.0,2541.4,0.39345]
[1727043625386,2.3215,2542.0,2541.2,3.2078]
[1727043625591,2.71487,2542.0,2541.6,0.39343]
[1727043625994,2.71487,2542.0,2541.6,0.39341]
[1727043626294,2.3215,2542.0,2541.7,0.39341]
[1727043626490,2.3215,2542.0,2541.6,0.39342]
[1727043626491,2.71487,2542.0,2541.6,0.39342]
[1727043626704,0.39338,2541.9,2541.5,3.60124]
[1727043626903,2.71488,2542.0,2541.5,3.60124]
[1727043627107,2.3215,2542.0,2541.5,3.60123]
[1727043627309,2.71487,2542.0,2541.5,3.60123]
[1727043629607,0.39338,2541.9,2541.5,3.2078]
[1727043629812,0.39338,2541.9,2541.5,3.60124]
[1727043630209,2.71487,2542.0,2541.5,3.60124]
[1727043630518,2.71487,2542.0,2541.6,0.39343]
[1727043630911,2.3215,2542.0,2541.6,0.39341]
[1727043631109,4.1911,2542.4,2541.5,3.2078]
[1727043631308,2.2971,2542.3,2541.6,0.39342]
[1727043631817,0.39336,2542.1,2541.6,0.39342]
[1727043632317,0.39336,2542.1,2541.5,3.2078]
[1727043632318,2.69043,2542.3,2541.8,3.2078]
[1727043632523,2.2971,2542.3,2541.9,0.39338]
[1727043632814,0.98312,2542.8,2542.3,0.39331]
[1727043632815,0.39325,2542.8,2542.3,0.39331]
[1727043633022,3.2078,2542.9,2542.1,3.2078]
[1727043633023,1.57306,2542.7,2542.1,3.2078]
[1727043633311,1.1798,2542.7,2542.3,0.39332]
[1727043633520,1.57306,2542.7,2542.2,0.39333]
[1727043633915,0.39327,2542.6,2542.1,3.60114]
[1727043634913,1.1798,2542.7,2542.1,3.2078]
[1727043635210,1.57306,2542.7,2542.2,0.39332]
[1727043635418,1.1798,2542.7,2542.1,3.2078]
[1727043635611,1.57306,2542.7,2542.2,0.39333]
[1727043636216,0.39328,2542.6,2542.1,3.60114]
[1727043637917,0.39328,2542.6,2542.1,3.60115]
[1727043638513,4.19099,2542.6,2541.8,3.2078]
[1727043638720,0.39334,2542.2,2541.7,0.39341]
[1727043638924,0.39335,2542.1,2541.7,3.60121]
[1727043639112,0.39335,2542.1,2541.7,3.2078]
[1727043640020,0.39341,2541.8,2541.4,1.54956]
[1727043640221,0.39341,2541.8,2541.4,1.1561]
[1727043640616,1.1089,2541.9,2541.5,0.39344]
[1727043640824,0.3934,2541.8,2541.5,0.39344]
[1727043641121,0.3934,2541.8,2541.4,1.54955]
[1727043641721,1.1089,2541.9,2541.4,1.1561]
[1727043642220,0.39342,2541.7,2541.4,1.1561]
[1727043642417,0.39344,2541.6,2541.3,3.2078]
[1727043642621,0.39342,2541.7,2541.3,3.60127]
[1727043643027,0.39343,2541.6,2541.3,3.60127]
[1727043643234,4.19134,2541.7,2540.8,1.02526494]
[1727043643526,7.6833,2541.9,2540.6,0.39358]
[1727043643527,0.39353,2541.0,2540.6,0.39358]
[1727043643826,2.2955,2540.9,2540.3,5.44756494]
[1727043644024,4.19169,2540.8,2540.3,3.2078]
[1727043644323,0.98389,2540.8,2540.3,3.2078]
[1727043644522,8.1433,2540.9,2540.0,3.2078]
[1727043644728,0.3936,2540.5,2540.1,0.39365]
[1727043645128,0.39362,2540.4,2540.1,0.39366]
[1727043645422,0.39361,2540.5,2540.1,0.39366]
[1727043645627,0.39362,2540.4,2540.0,3.60147]
[1727043645817,0.39362,2540.4,2539.6,3.62432]
[1727043645818,0.39369,2540.0,2539.6,3.60153]
[1727043646016,3.2078,2540.2,2539.6,3.2078]
[1727043646219,3.2078,2540.2,2539.7,0.39372]
[1727043646220,1.1586,2539.9,2539.7,0.39372]
[1727043646423,1.1586,2539.9,2539.6,3.2078]
[1727043646633,1.1586,2539.9,2539.7,0.39371]
[1727043646821,1.1586,2539.9,2539.6,3.60153]
[1727043647021,1.1586,2539.9,2539.7,0.39372]
[1727043647217,1.1664,2540.1,2539.8,0.39371]
[1727043648225,1.1664,2540.1,2539.6,3.60153]
[1727043648424,1.1664,2540.1,2539.6,3.2078]
[1727043648926,1.56007,2540.1,2539.6,3.2078]
[1727043649126,1.1664,2540.1,2539.6,3.2078]
[1727043649325,1.1886,2540.4,2539.9,3.2078]
[1727043649631,1.1886,2540.4,2540.0,1.61547]
[1727043650435,1.1792,2541.0,2540.5,0.39359]
[1727043650733,1.1792,2541.0,2540.5,3.2078]
[1727043651138,1.1792,2541.0,2540.5,3.60139]
[1727043651325,1.1792,2541.0,2540.4,0.3936]
[1727043651525,1.1792,2541.0,2540.2,5.8478]
[1727043651821,1.1792,2541.0,2540.5,3.2078]
[1727043652133,1.57272,2541.0,2540.3,0.39362]
[1727043652328,0.39354,2540.9,2540.3,0.39362]
[1727043652731,1.57273,2541.0,2540.4,0.39361]
[1727043653729,0.39354,2540.9,2540.4,0.39361]
[1727043654126,0.39354,2540.9,2540.2,3.60143]
[1727043654127,0.39357,2540.7,2540.2,3.60143]
[1727043654626,0.39356,2540.8,2540.2,3.60143]
[1727043655137,3.2078,2540.9,2540.0,1.2218]
[1727043655438,5.41578,2540.9,2539.8,3.2078]
[1727043655627,0.39365,2540.2,2539.8,3.2078]
[1727043655830,1.1552,2540.1,2539.8,3.2078]
[1727043656835,0.39368,2540.0,2539.8,3.2078]
[1727043657229,1.1552,2540.1,2539.8,3.2078]
[1727043657230,1.54887,2540.1,2539.8,3.2078]
[1727043657433,1.1552,2540.1,2539.8,3.2078]
[1727043658134,0.3937,2539.9,2539.5,1.53504]
[1727043658327,0.3937,2539.9,2539.5,0.39374]
[1727043658527,1.1552,2540.1,2539.5,3.60154]
[1727043658528,0.39369,2540.0,2539.5,3.60154]
[1727043659431,0.39369,2539.9,2539.5,3.2078]
[1727043659637,0.39369,2539.9,2539.4,0.39376]
[1727043659836,0.39369,2539.9,2539.5,0.39375]
[1727043660035,0.39369,2540.0,2539.5,0.39375]
[1727043660237,0.39369,2539.9,2539.5,0.39375]
[1727043660637,4.192,2540.0,2539.1,4.329]
[1727043660938,4.192,2540.0,2539.1,3.2078]
[1727043660939,0.39376,2539.5,2539.1,3.2078]
[1727043661237,1.1921,2539.8,2539.1,4.19234]
[1727043661438,3.2078,2540.2,2539.9,0.39369]
[1727043661626,3.2078,2540.2,2539.5,3.2078]
[1727043661826,3.2078,2540.2,2540.0,0.39368]
[1727043662136,1.58571,2540.5,2540.0,0.39368]
[1727043662137,4.79351,2540.5,2540.0,0.39368]
[1727043662334,5.6044,2540.5,2539.9,3.2078]
[1727043662644,3.2078,2540.2,2539.6,1.2189]
[1727043662935,0.39367,2540.1,2539.7,0.39372]
[1727043663347,0.39367,2540.1,2539.5,3.2078]
[1727043663348,0.39367,2540.1,2539.6,0.39373]
[1727043663530,0.98406,2540.4,2539.5,3.60154]
[1727043663531,0.39368,2540.0,2539.5,3.60154]